[Event "*** Titled Tuesday Blitz"]
[Site "Chess.com"]
[Date "2021.02.16"]
[Round "2"]
[White "BairaKovanova"]
[Black "Ze-Pequeno"]
[Result "1-0"]
[WhiteElo "2475"]
[BlackElo "2290"]
[TimeControl "180+1"]
[EndTime "10:19:12 PST"]
[Termination "BairaKovanova won on time"]

1. Nf3 {[%clk 0:03:00.9]} 1... Nf6 {[%clk 0:02:59.7]} 2. d4 {[%clk 0:02:58.5]}
2... g6 {[%clk 0:02:59.5]} 3. c4 {[%clk 0:02:56.8]} 3... Bg7 {[%clk 0:02:59.4]}
4. Bf4 {[%clk 0:02:56.8]} 4... O-O {[%clk 0:02:48.8]} 5. e3 {[%clk 0:02:53.8]}
5... c5 {[%clk 0:02:40.7]} 6. Be2 {[%clk 0:02:50.6]} 6... cxd4 {[%clk
0:02:38.4]} 7. exd4 {[%clk 0:02:50.8]} 7... d5 {[%clk 0:02:38.8]} 8. c5 {[%clk
0:02:50]} 8... Nc6 {[%clk 0:02:35.5]} 9. O-O {[%clk 0:02:49.4]} 9... b6 {[%clk
0:02:35.3]} 10. cxb6 {[%clk 0:02:15.7]} 10... Qxb6 {[%clk 0:02:25.2]} 11. Nc3
{[%clk 0:01:39.9]} 11... Qxb2 {[%clk 0:02:16.6]} 12. Nb5 {[%clk 0:01:39.3]}
12... Bf5 {[%clk 0:02:07.6]} 13. Ne5 {[%clk 0:01:24.6]} 13... Rfc8 {[%clk
0:01:59.4]} 14. Rc1 {[%clk 0:00:54.3]} 14... Nxe5 {[%clk 0:01:43.6]} 15. Rxc8+
{[%clk 0:00:54.1]} 15... Rxc8 {[%clk 0:01:42.8]} 16. dxe5 {[%clk 0:00:54.6]}
16... Ne4 {[%clk 0:01:42]} 17. Qxd5 {[%clk 0:00:53.6]} 17... Qxe2 {[%clk
0:01:39.7]} 18. Nxa7 {[%clk 0:00:47.2]} 18... Rf8 {[%clk 0:01:23.5]} 19. Nc6
{[%clk 0:00:46.9]} 19... e6 {[%clk 0:01:11.3]} 20. Qd4 {[%clk 0:00:27.5]} 20...
Qb5 {[%clk 0:00:45.8]} 21. Ne7+ {[%clk 0:00:26.9]} 21... Kh8 {[%clk 0:00:45.7]}
22. Nxf5 {[%clk 0:00:26.6]} 22... exf5 {[%clk 0:00:45.5]} 23. Rc1 {[%clk
0:00:20.4]} 23... g5 {[%clk 0:00:16.8]} 24. Be3 {[%clk 0:00:14.5]} 24... Qxe5
{[%clk 0:00:15.1]} 25. Qb4 {[%clk 0:00:13.1]} 25... Re8 {[%clk 0:00:09.9]} 26.
h3 {[%clk 0:00:12.1]} 26... f4 {[%clk 0:00:09.6]} 27. Bb6 {[%clk 0:00:12.2]}
27... Qe6 {[%clk 0:00:06.1]} 28. a4 {[%clk 0:00:12]} 28... Nf6 {[%clk
0:00:04.3]} 29. Qa3 {[%clk 0:00:09]} 29... Nd5 {[%clk 0:00:04.2]} 30. Bc5 {[%clk
0:00:07.8]} 30... Rc8 {[%clk 0:00:02.8]} 31. a5 {[%clk 0:00:07.7]} 31... Qa6
{[%clk 0:00:02.5]} 32. Qb3 {[%clk 0:00:05.6]} 1-0

[Event "*** Titled Tuesday Blitz"]
[Site "Chess.com"]
[Date "2021.02.16"]
[Round "2"]
[White "zeitnot2006"]
[Black "sergiochess83"]
[Result "1-0"]
[WhiteElo "2541"]
[BlackElo "2835"]
[TimeControl "180+1"]
[EndTime "10:19:13 PST"]
[Termination "zeitnot2006 won on time"]

1. d4 {[%clk 0:03:00.9]} 1... Nf6 {[%clk 0:02:59.6]} 2. Bf4 {[%clk 0:02:59.8]}
2... c5 {[%clk 0:02:58.7]} 3. dxc5 {[%clk 0:02:58.5]} 3... e6 {[%clk 0:02:55.7]}
4. Bd6 {[%clk 0:02:46.3]} 4... Na6 {[%clk 0:02:54.8]} 5. Nf3 {[%clk 0:02:38.7]}
5... Nxc5 {[%clk 0:02:51.5]} 6. Bxf8 {[%clk 0:02:38.6]} 6... Kxf8 {[%clk
0:02:48.4]} 7. g3 {[%clk 0:02:27.4]} 7... d5 {[%clk 0:02:44.3]} 8. Bg2 {[%clk
0:02:28]} 8... g6 {[%clk 0:02:40.7]} 9. O-O {[%clk 0:02:22.3]} 9... Kg7 {[%clk
0:02:40.7]} 10. Nbd2 {[%clk 0:02:14.6]} 10... b5 {[%clk 0:02:37.2]} 11. Nb3
{[%clk 0:02:12.2]} 11... Nce4 {[%clk 0:02:32.1]} 12. Nfd4 {[%clk 0:02:08.6]}
12... Qb6 {[%clk 0:02:27.9]} 13. a4 {[%clk 0:02:02.6]} 13... bxa4 {[%clk
0:02:19.5]} 14. Rxa4 {[%clk 0:02:03.5]} 14... Bd7 {[%clk 0:02:19.8]} 15. Ra1
{[%clk 0:01:58.3]} 15... a5 {[%clk 0:02:17.3]} 16. Ra2 {[%clk 0:01:40.8]} 16...
a4 {[%clk 0:02:11.7]} 17. Nc1 {[%clk 0:01:38.7]} 17... Rhc8 {[%clk 0:02:07.9]}
18. Nf3 {[%clk 0:01:30]} 18... Ng4 {[%clk 0:01:43.2]} 19. Nd3 {[%clk 0:01:15.2]}
19... Bb5 {[%clk 0:01:43.3]} 20. e3 {[%clk 0:01:08.1]} 20... Nxe3 {[%clk
0:01:20.3]} 21. fxe3 {[%clk 0:01:05.9]} 21... Qxe3+ {[%clk 0:01:21.2]} 22. Kh1
{[%clk 0:00:55.1]} 22... Bxd3 {[%clk 0:01:16]} 23. Qxd3 {[%clk 0:00:46.3]} 23...
Nf2+ {[%clk 0:01:15]} 24. Rxf2 {[%clk 0:00:45]} 24... Qxf2 {[%clk 0:01:15.9]}
25. c3 {[%clk 0:00:33.4]} 25... a3 {[%clk 0:01:10.5]} 26. Qb1 {[%clk 0:00:13.1]}
26... axb2 {[%clk 0:00:55.8]} 27. Rxb2 {[%clk 0:00:14]} 27... Qe3 {[%clk
0:00:52.1]} 28. Rc2 {[%clk 0:00:06.2]} 28... Rxc3 {[%clk 0:00:45.4]} 29. h4
{[%clk 0:00:04.8]} 29... Rxc2 {[%clk 0:00:18]} 30. Qxc2 {[%clk 0:00:05.3]} 30...
d4 {[%clk 0:00:13.4]} 31. Qc6 {[%clk 0:00:02.2]} 31... Ra7 {[%clk 0:00:08.7]}
32. Kh2 {[%clk 0:00:02.4]} 32... d3 {[%clk 0:00:07.7]} 33. Qc3+ {[%clk
0:00:02.9]} 33... f6 {[%clk 0:00:04.8]} 34. Nd4 {[%clk 0:00:02.3]} 34... Rd7
{[%clk 0:00:03.8]} 35. Nf3 {[%clk 0:00:01.3]} 1-0

[Event "*** Titled Tuesday Blitz"]
[Site "Chess.com"]
[Date "2021.02.16"]
[Round "2"]
[White "Nozdrachev_Leonid"]
[Black "GMKrikor"]
[Result "1-0"]
[WhiteElo "2522"]
[BlackElo "2806"]
[TimeControl "180+1"]
[EndTime "10:19:14 PST"]
[Termination "Nozdrachev_Leonid won by resignation"]

1. e4 {[%clk 0:03:00.9]} 1... c5 {[%clk 0:02:57.4]} 2. c3 {[%clk 0:03:00.5]}
2... d5 {[%clk 0:02:55.7]} 3. exd5 {[%clk 0:03:00.1]} 3... Qxd5 {[%clk
0:02:56.6]} 4. d4 {[%clk 0:03:00.2]} 4... g6 {[%clk 0:02:55.1]} 5. Nf3 {[%clk
0:02:59.9]} 5... Bg7 {[%clk 0:02:53.3]} 6. Be3 {[%clk 0:02:57.6]} 6... Nf6
{[%clk 0:02:43.3]} 7. Be2 {[%clk 0:02:53.2]} 7... O-O {[%clk 0:02:40]} 8. dxc5
{[%clk 0:02:52.4]} 8... Qxd1+ {[%clk 0:02:39.5]} 9. Bxd1 {[%clk 0:02:52]} 9...
Ng4 {[%clk 0:02:23.6]} 10. Bg5 {[%clk 0:02:44.8]} 10... Na6 {[%clk 0:02:20.2]}
11. O-O {[%clk 0:02:42.6]} 11... f6 {[%clk 0:02:05.6]} 12. Bc1 {[%clk
0:02:37.1]} 12... Nxc5 {[%clk 0:02:04.9]} 13. h3 {[%clk 0:02:36.6]} 13... Nh6
{[%clk 0:02:05.4]} 14. Be3 {[%clk 0:02:36]} 14... b6 {[%clk 0:02:00.9]} 15. Re1
{[%clk 0:02:32.8]} 15... e5 {[%clk 0:01:58.6]} 16. Bxc5 {[%clk 0:02:27.3]} 16...
bxc5 {[%clk 0:01:58.2]} 17. Bb3+ {[%clk 0:02:27.8]} 17... Kh8 {[%clk 0:01:57.8]}
18. Nbd2 {[%clk 0:02:27.1]} 18... a5 {[%clk 0:01:47.5]} 19. Ne4 {[%clk
0:02:24.8]} 19... Bb7 {[%clk 0:01:38.7]} 20. Nxc5 {[%clk 0:02:23.6]} 20... Bxf3
{[%clk 0:01:37.9]} 21. gxf3 {[%clk 0:02:24.5]} 21... Rfc8 {[%clk 0:01:24.1]} 22.
Na4 {[%clk 0:02:21]} 22... Rab8 {[%clk 0:01:22.2]} 23. Red1 {[%clk 0:02:19.8]}
23... Nf5 {[%clk 0:01:20]} 24. Be6 {[%clk 0:02:14.2]} 24... Rc6 {[%clk
0:01:13.3]} 25. Bd7 {[%clk 0:02:06.7]} 25... Rc4 {[%clk 0:01:11.5]} 26. b3
{[%clk 0:02:01.8]} 26... Rf4 {[%clk 0:01:10.2]} 27. Bxf5 {[%clk 0:02:01.2]}
27... gxf5 {[%clk 0:01:08.4]} 28. Kg2 {[%clk 0:02:00.2]} 28... Rg8 {[%clk
0:01:07.9]} 29. Rd3 {[%clk 0:01:58.3]} 29... e4 {[%clk 0:01:05.7]} 30. fxe4
{[%clk 0:01:57.2]} 30... fxe4 {[%clk 0:01:06.6]} 31. Rg3 {[%clk 0:01:56.6]}
31... h5 {[%clk 0:01:04.2]} 32. Rd1 {[%clk 0:01:51.2]} 32... f5 {[%clk
0:00:56.6]} 33. Rd5 {[%clk 0:01:47.7]} 33... Kh7 {[%clk 0:00:52.5]} 34. Rxa5
{[%clk 0:01:43.8]} 34... h4 {[%clk 0:00:35.7]} 35. Rg5 {[%clk 0:01:39.9]} 35...
Bd4 {[%clk 0:00:35.8]} 36. Rxg8 {[%clk 0:01:31.7]} 36... Rxf2+ {[%clk
0:00:35.8]} 37. Kg1 {[%clk 0:01:31.1]} 37... Be3 {[%clk 0:00:36.1]} 38. Raa8
{[%clk 0:01:12.4]} 38... f4 {[%clk 0:00:16.6]} 39. Rg4 {[%clk 0:01:03.4]} 39...
Rf3+ {[%clk 0:00:10.7]} 40. Kh2 {[%clk 0:01:02.2]} 40... Rf2+ {[%clk 0:00:10.5]}
41. Rg2 {[%clk 0:01:01.9]} 41... f3 {[%clk 0:00:11.1]} 42. Rxf2 {[%clk 0:00:59]}
42... Bxf2 {[%clk 0:00:12]} 43. Re8 {[%clk 0:00:57]} 43... e3 {[%clk 0:00:12.4]}
44. Nb2 {[%clk 0:00:48.6]} 44... Kg6 {[%clk 0:00:09]} 45. Nd3 {[%clk 0:00:45.3]}
45... Bg3+ {[%clk 0:00:09.6]} 46. Kg1 {[%clk 0:00:44.2]} 46... e2 {[%clk
0:00:10.5]} 47. Re3 {[%clk 0:00:40.8]} 47... e1=Q+ {[%clk 0:00:07.3]} 48. Nxe1
{[%clk 0:00:40]} 48... f2+ {[%clk 0:00:07.9]} 49. Kf1 {[%clk 0:00:40.2]} 49...
fxe1=Q+ {[%clk 0:00:08.4]} 50. Rxe1 {[%clk 0:00:40]} 50... Bxe1 {[%clk
0:00:09.2]} 51. Kxe1 {[%clk 0:00:39.8]} 51... Kf5 {[%clk 0:00:10.1]} 1-0

[Event "*** Titled Tuesday Blitz"]
[Site "Chess.com"]
[Date "2021.02.16"]
[Round "2"]
[White "LEGENYA1998"]
[Black "ZEN-22"]
[Result "0-1"]
[WhiteElo "2274"]
[BlackElo "2471"]
[TimeControl "180+1"]
[EndTime "10:19:15 PST"]
[Termination "ZEN-22 won by resignation"]

1. e4 {[%clk 0:03:00.9]} 1... d5 {[%clk 0:02:53.6]} 2. e5 {[%clk 0:02:57.1]}
2... c5 {[%clk 0:02:52.8]} 3. Nf3 {[%clk 0:02:52.6]} 3... Nc6 {[%clk 0:02:50.5]}
4. Bb5 {[%clk 0:02:52.4]} 4... Qb6 {[%clk 0:02:48]} 5. Bxc6+ {[%clk 0:02:52.3]}
5... Qxc6 {[%clk 0:02:47]} 6. d4 {[%clk 0:02:52.5]} 6... Bg4 {[%clk 0:02:45.8]}
7. Be3 {[%clk 0:02:50.5]} 7... cxd4 {[%clk 0:02:42.4]} 8. Bxd4 {[%clk
0:02:48.1]} 8... e6 {[%clk 0:02:41.2]} 9. Nbd2 {[%clk 0:02:40.8]} 9... Ne7
{[%clk 0:02:39.2]} 10. h3 {[%clk 0:02:39.4]} 10... Bh5 {[%clk 0:02:38.1]} 11. g4
{[%clk 0:02:28.9]} 11... Bg6 {[%clk 0:02:37.1]} 12. Rc1 {[%clk 0:02:25.9]} 12...
Qa6 {[%clk 0:02:35.9]} 13. a3 {[%clk 0:02:18.7]} 13... Rc8 {[%clk 0:02:34.7]}
14. Qe2 {[%clk 0:01:56.9]} 14... Qxe2+ {[%clk 0:02:25.2]} 15. Kxe2 {[%clk
0:01:57.1]} 15... Bxc2 {[%clk 0:02:25.6]} 16. Bxa7 {[%clk 0:01:55.2]} 16... Kd7
{[%clk 0:02:12.9]} 17. Nd4 {[%clk 0:01:52.9]} 17... Bg6 {[%clk 0:02:11.6]} 18.
f4 {[%clk 0:01:44.9]} 18... h5 {[%clk 0:02:08.3]} 19. Rcf1 {[%clk 0:01:30]}
19... Ra8 {[%clk 0:01:44.2]} 20. Bc5 {[%clk 0:01:28.3]} 20... Nc6 {[%clk
0:01:43]} 21. Nxc6 {[%clk 0:00:41.2]} 21... Bxc5 {[%clk 0:01:13.5]} 22. Nb4
{[%clk 0:00:38.5]} 22... Bxb4 {[%clk 0:01:13.2]} 23. axb4 {[%clk 0:00:38.6]}
23... hxg4 {[%clk 0:01:09]} 24. hxg4 {[%clk 0:00:38.6]} 24... Rxh1 {[%clk
0:01:07.3]} 25. Rxh1 {[%clk 0:00:38.7]} 25... Ra4 {[%clk 0:01:07.6]} 26. b3
{[%clk 0:00:33.9]} 26... Rxb4 {[%clk 0:01:07.2]} 27. Ke3 {[%clk 0:00:34.4]}
27... Be4 {[%clk 0:01:02.1]} 28. Rc1 {[%clk 0:00:27.6]} 28... g5 {[%clk
0:01:02]} 29. fxg5 {[%clk 0:00:25.4]} 29... Bg6 {[%clk 0:01:02]} 30. Kf3 {[%clk
0:00:22.8]} 30... Rd4 {[%clk 0:00:58.8]} 31. Nf1 {[%clk 0:00:22]} 31... Rd3+
{[%clk 0:00:58.3]} 32. Kf2 {[%clk 0:00:19.6]} 32... Rxb3 {[%clk 0:00:59.2]} 33.
Ne3 {[%clk 0:00:19.1]} 33... Rb2+ {[%clk 0:00:53]} 34. Kg3 {[%clk 0:00:18.2]}
34... Rb4 {[%clk 0:00:53.1]} 35. Ng2 {[%clk 0:00:14.3]} 35... Re4 {[%clk
0:00:50.5]} 36. Nf4 {[%clk 0:00:14.2]} 36... Rxe5 {[%clk 0:00:50.5]} 37. Nxg6
{[%clk 0:00:11.3]} 37... fxg6 {[%clk 0:00:51.4]} 38. Rb1 {[%clk 0:00:11.6]}
38... Kc6 {[%clk 0:00:50.2]} 39. Kf4 {[%clk 0:00:10.5]} 39... Re4+ {[%clk
0:00:50.1]} 40. Kf3 {[%clk 0:00:10.9]} 40... b5 {[%clk 0:00:50.8]} 41. Rh1
{[%clk 0:00:10.9]} 41... Re5 {[%clk 0:00:49.7]} 42. Kf4 {[%clk 0:00:10.8]} 42...
Re4+ {[%clk 0:00:49.1]} 43. Kf3 {[%clk 0:00:11.3]} 43... b4 {[%clk 0:00:49.5]}
44. Rh6 {[%clk 0:00:10.5]} 44... b3 {[%clk 0:00:49.8]} 45. Rh2 {[%clk
0:00:08.6]} 45... Re5 {[%clk 0:00:47.9]} 46. Kf4 {[%clk 0:00:08.5]} 46... Re4+
{[%clk 0:00:47.2]} 47. Kf3 {[%clk 0:00:09.1]} 47... Rb4 {[%clk 0:00:46.8]} 48.
Rb2 {[%clk 0:00:08.4]} 48... Kd6 {[%clk 0:00:46.4]} 49. Ke3 {[%clk 0:00:08.6]}
49... Ke5 {[%clk 0:00:46.5]} 50. Kf3 {[%clk 0:00:08.7]} 50... d4 {[%clk
0:00:45.8]} 51. Kg3 {[%clk 0:00:08.4]} 51... Ke4 {[%clk 0:00:46]} 52. Kf2 {[%clk
0:00:08.5]} 52... Kd3 {[%clk 0:00:45.4]} 53. Ke1 {[%clk 0:00:07.3]} 53... Kc3
{[%clk 0:00:45.4]} 54. Rd2 {[%clk 0:00:07.7]} 54... b2 {[%clk 0:00:46.1]} 55.
Rxb2 {[%clk 0:00:07.9]} 55... Rxb2 {[%clk 0:00:45.7]} 0-1

[Event "*** Titled Tuesday Blitz"]
[Site "Chess.com"]
[Date "2021.02.16"]
[Round "2"]
[White "EdmundPlayer"]
[Black "Orest_Vovk"]
[Result "1-0"]
[WhiteElo "2187"]
[BlackElo "2411"]
[TimeControl "180+1"]
[EndTime "10:19:15 PST"]
[Termination "EdmundPlayer won on time"]

1. e4 {[%clk 0:03:00.9]} 1... Nc6 {[%clk 0:02:47.9]} 2. Nf3 {[%clk 0:02:59.3]}
2... d5 {[%clk 0:02:47.8]} 3. exd5 {[%clk 0:02:58.5]} 3... Qxd5 {[%clk
0:02:48.7]} 4. Nc3 {[%clk 0:02:58]} 4... Qa5 {[%clk 0:02:48.5]} 5. Bb5 {[%clk
0:02:56.4]} 5... Bd7 {[%clk 0:02:42.2]} 6. O-O {[%clk 0:02:49.8]} 6... O-O-O
{[%clk 0:02:41.3]} 7. Re1 {[%clk 0:02:41.4]} 7... a6 {[%clk 0:02:30.4]} 8. Bxc6
{[%clk 0:02:34.4]} 8... Bxc6 {[%clk 0:02:25]} 9. Ne5 {[%clk 0:02:33.4]} 9... Be8
{[%clk 0:02:24.6]} 10. b4 {[%clk 0:01:41.9]} 10... Qxb4 {[%clk 0:02:14]} 11. Rb1
{[%clk 0:01:41.2]} 11... Qf4 {[%clk 0:01:43.8]} 12. d3 {[%clk 0:01:21.2]} 12...
Qf5 {[%clk 0:01:43.1]} 13. Ba3 {[%clk 0:00:45.2]} 13... Nf6 {[%clk 0:01:32.3]}
14. Qc1 {[%clk 0:00:25]} 14... e6 {[%clk 0:01:08.4]} 15. Bxf8 {[%clk 0:00:24.2]}
15... Rxf8 {[%clk 0:01:07.6]} 16. Qb2 {[%clk 0:00:22.2]} 16... Bc6 {[%clk
0:01:07.4]} 17. Nxc6 {[%clk 0:00:18.9]} 17... bxc6 {[%clk 0:01:07.5]} 18. Qb7+
{[%clk 0:00:17.8]} 18... Kd7 {[%clk 0:01:07.4]} 19. Na4 {[%clk 0:00:13.3]} 19...
Qa5 {[%clk 0:01:00.3]} 20. Nb6+ {[%clk 0:00:12]} 20... Ke8 {[%clk 0:00:43.4]}
21. Qxc6+ {[%clk 0:00:11.2]} 21... Ke7 {[%clk 0:00:26.5]} 22. Qxc7+ {[%clk
0:00:11.2]} 22... Ke8 {[%clk 0:00:21.4]} 23. Qc6+ {[%clk 0:00:08.9]} 23... Ke7
{[%clk 0:00:21.1]} 24. Qc7+ {[%clk 0:00:06.6]} 24... Ke8 {[%clk 0:00:20.3]} 25.
Qc6+ {[%clk 0:00:06.9]} 25... Ke7 {[%clk 0:00:10.8]} 26. Qb7+ {[%clk 0:00:06.4]}
26... Nd7 {[%clk 0:00:09.3]} 27. Nxd7 {[%clk 0:00:03.7]} 27... Rxd7 {[%clk
0:00:10.2]} 28. Qc6 {[%clk 0:00:04]} 28... Qxa2 {[%clk 0:00:07.3]} 29. Qc5+
{[%clk 0:00:03.5]} 29... Kf6 {[%clk 0:00:04.6]} 30. Qe5+ {[%clk 0:00:02.8]}
30... Kg6 {[%clk 0:00:03.1]} 31. Rb4 {[%clk 0:00:03.7]} 31... f5 {[%clk
0:00:01.2]} 32. Rh4 {[%clk 0:00:02.9]} 32... Rff7 {[%clk 0:00:01.6]} 33. Qxe6+
{[%clk 0:00:02.7]} 1-0

[Event "*** Titled Tuesday Blitz"]
[Site "Chess.com"]
[Date "2021.02.16"]
[Round "2"]
[White "DinaBelenkaya"]
[Black "CSB7"]
[Result "0-1"]
[WhiteElo "2311"]
[BlackElo "2532"]
[TimeControl "180+1"]
[EndTime "10:19:16 PST"]
[Termination "CSB7 won on time"]

1. e4 {[%clk 0:03:00.9]} 1... c5 {[%clk 0:02:59.6]} 2. Nc3 {[%clk 0:03:00.2]}
2... e6 {[%clk 0:02:57.5]} 3. g3 {[%clk 0:02:53.6]} 3... d5 {[%clk 0:02:57.4]}
4. exd5 {[%clk 0:02:52.7]} 4... exd5 {[%clk 0:02:58.3]} 5. Bg2 {[%clk 0:02:49]}
5... d4 {[%clk 0:02:56]} 6. Ne4 {[%clk 0:02:47.1]} 6... Nc6 {[%clk 0:02:48.4]}
7. Qe2 {[%clk 0:02:36.3]} 7... Be6 {[%clk 0:02:45.1]} 8. d3 {[%clk 0:02:32.7]}
8... Be7 {[%clk 0:02:38.6]} 9. Nf3 {[%clk 0:02:30.4]} 9... h6 {[%clk 0:02:17.6]}
10. h4 {[%clk 0:02:27.8]} 10... Nf6 {[%clk 0:02:12.1]} 11. Nfd2 {[%clk
0:02:14.5]} 11... O-O {[%clk 0:01:57.5]} 12. Nxf6+ {[%clk 0:02:14.2]} 12... Bxf6
{[%clk 0:01:53.7]} 13. Ne4 {[%clk 0:02:15.1]} 13... Re8 {[%clk 0:01:40.9]} 14.
Bf4 {[%clk 0:02:13.3]} 14... Be5 {[%clk 0:01:26.9]} 15. Bxe5 {[%clk 0:01:49.9]}
15... Nxe5 {[%clk 0:01:27.8]} 16. O-O {[%clk 0:01:36]} 16... Bg4 {[%clk
0:01:18.2]} 17. f3 {[%clk 0:01:34]} 17... Bf5 {[%clk 0:01:16.8]} 18. Qd2 {[%clk
0:01:26.4]} 18... Bxe4 {[%clk 0:01:09.9]} 19. fxe4 {[%clk 0:01:25]} 19... c4
{[%clk 0:01:05]} 20. Bh3 {[%clk 0:01:24]} 20... cxd3 {[%clk 0:00:59.7]} 21. cxd3
{[%clk 0:01:24.9]} 21... Qd6 {[%clk 0:00:56.1]} 22. Rf5 {[%clk 0:01:17.6]} 22...
Rac8 {[%clk 0:00:46.7]} 23. Raf1 {[%clk 0:01:12.5]} 23... Rc5 {[%clk 0:00:42.4]}
24. Qf4 {[%clk 0:01:01.9]} 24... Qe7 {[%clk 0:00:35.2]} 25. h5 {[%clk
0:00:57.6]} 25... Nxd3 {[%clk 0:00:31]} 26. Qd2 {[%clk 0:00:41.8]} 26... Rxf5
{[%clk 0:00:27.3]} 27. Bxf5 {[%clk 0:00:41]} 27... Ne5 {[%clk 0:00:23.5]} 28.
Qxd4 {[%clk 0:00:40.4]} 28... Qg5 {[%clk 0:00:23.5]} 29. Kg2 {[%clk 0:00:27.1]}
29... Qxh5 {[%clk 0:00:20.5]} 30. Qxa7 {[%clk 0:00:20.5]} 30... Ng4 {[%clk
0:00:11.8]} 31. Rh1 {[%clk 0:00:13.3]} 31... Qg5 {[%clk 0:00:10.3]} 32. Qd4
{[%clk 0:00:05.3]} 32... Ne3+ {[%clk 0:00:09.6]} 33. Kf3 {[%clk 0:00:04.7]}
33... Nxf5 {[%clk 0:00:09.6]} 34. exf5 {[%clk 0:00:04.6]} 34... Qxf5+ {[%clk
0:00:09.9]} 35. Qf4 {[%clk 0:00:03.4]} 35... Qd3+ {[%clk 0:00:09.9]} 36. Kg4
{[%clk 0:00:02.9]} 36... Qd7+ {[%clk 0:00:09.1]} 37. Kh5 {[%clk 0:00:01.6]}
37... Qd5+ {[%clk 0:00:08.4]} 0-1

[Event "*** Titled Tuesday Blitz"]
[Site "Chess.com"]
[Date "2021.02.16"]
[Round "2"]
[White "HackingKid98"]
[Black "novocane"]
[Result "1-0"]
[WhiteElo "2464"]
[BlackElo "2258"]
[TimeControl "180+1"]
[EndTime "10:19:18 PST"]
[Termination "HackingKid98 won by resignation"]

1. Nf3 {[%clk 0:03:00.9]} 1... c5 {[%clk 0:02:59.5]} 2. e3 {[%clk 0:02:58.5]}
2... b6 {[%clk 0:02:56.2]} 3. d4 {[%clk 0:02:57.4]} 3... Bb7 {[%clk 0:02:46]} 4.
c3 {[%clk 0:02:56.7]} 4... e6 {[%clk 0:02:44.3]} 5. Nbd2 {[%clk 0:02:55.6]} 5...
Nf6 {[%clk 0:02:39.3]} 6. Bd3 {[%clk 0:02:54.1]} 6... Be7 {[%clk 0:02:30.7]} 7.
Qe2 {[%clk 0:02:52.9]} 7... d6 {[%clk 0:02:22.1]} 8. O-O {[%clk 0:02:50.5]} 8...
O-O {[%clk 0:02:18]} 9. e4 {[%clk 0:02:50.6]} 9... Re8 {[%clk 0:02:12.2]} 10. e5
{[%clk 0:02:49.4]} 10... Nfd7 {[%clk 0:02:00]} 11. Ne4 {[%clk 0:02:39.7]} 11...
dxe5 {[%clk 0:01:42.8]} 12. dxe5 {[%clk 0:02:36.8]} 12... Nc6 {[%clk 0:01:37.1]}
13. Bf4 {[%clk 0:02:23.7]} 13... Qc7 {[%clk 0:01:34.2]} 14. Nd6 {[%clk
0:02:04.8]} 14... Bxd6 {[%clk 0:01:29.1]} 15. exd6 {[%clk 0:02:05.7]} 15... Qd8
{[%clk 0:01:24.5]} 16. Ng5 {[%clk 0:01:51.3]} 16... Nf8 {[%clk 0:01:03.9]} 17.
Qh5 {[%clk 0:01:40.5]} 17... g6 {[%clk 0:00:58.2]} 18. Qh4 {[%clk 0:01:35]}
18... f6 {[%clk 0:00:55.5]} 19. Nxh7 {[%clk 0:01:22.4]} 19... Nxh7 {[%clk
0:00:53.7]} 20. Bxg6 {[%clk 0:01:22.4]} 20... Nf8 {[%clk 0:00:47]} 21. Bxe8
{[%clk 0:01:12]} 21... Qxe8 {[%clk 0:00:45.3]} 22. Qxf6 {[%clk 0:01:11.6]} 22...
Qg6 {[%clk 0:00:42.4]} 23. Qxg6+ {[%clk 0:01:07.2]} 23... Nxg6 {[%clk
0:00:42.3]} 24. Bg3 {[%clk 0:01:08.1]} 24... Rd8 {[%clk 0:00:39.9]} 25. Rad1
{[%clk 0:01:06.4]} 25... e5 {[%clk 0:00:37.8]} 26. Rfe1 {[%clk 0:01:04.7]} 26...
Kf7 {[%clk 0:00:34.5]} 27. f3 {[%clk 0:00:57.6]} 27... Ke6 {[%clk 0:00:33.6]}
28. h4 {[%clk 0:00:52.4]} 28... Rxd6 {[%clk 0:00:32.6]} 29. Rxd6+ {[%clk
0:00:49.3]} 29... Kxd6 {[%clk 0:00:33.5]} 30. h5 {[%clk 0:00:49.9]} 30... Nf8
{[%clk 0:00:24.3]} 31. h6 {[%clk 0:00:47.4]} 31... Bc8 {[%clk 0:00:24.1]} 32. f4
{[%clk 0:00:41]} 32... e4 {[%clk 0:00:11.7]} 33. Rxe4 {[%clk 0:00:36.8]} 33...
Bf5 {[%clk 0:00:11]} 34. Re8 {[%clk 0:00:33.4]} 34... Nh7 {[%clk 0:00:11]} 35.
Kf2 {[%clk 0:00:25.9]} 35... Ne7 {[%clk 0:00:09.9]} 36. Bh4 {[%clk 0:00:24.3]}
36... Nd5 {[%clk 0:00:09.7]} 37. Bg5 {[%clk 0:00:23.8]} 37... Ndf6 {[%clk
0:00:08]} 38. Ra8 {[%clk 0:00:21.2]} 38... Nxg5 {[%clk 0:00:06.5]} 39. fxg5
{[%clk 0:00:20.9]} 39... Ne4+ {[%clk 0:00:07.4]} 40. Ke3 {[%clk 0:00:21.2]}
40... Nxg5 {[%clk 0:00:08.3]} 41. Kf4 {[%clk 0:00:21.7]} 41... Be4 {[%clk
0:00:05.8]} 42. Kxg5 {[%clk 0:00:21.1]} 42... Bxa8 {[%clk 0:00:05.3]} 43. h7
{[%clk 0:00:21.3]} 1-0